[Event "FIDE World Cup"]
[Site "Tbilisi"]
[Date "2017.09.03"]
[Round "1.1"]
[White "Carlsen, Magnus"]
[Black "Balogun, Oluwafemi"]
[Result "1-0"]
[ECO "B06"]
[WhiteElo "2827"]
[BlackElo "2255"]
[Annotator "Sagar,Shah"]
[PlyCount "77"]
[EventDate "2017.09.03"]
[EventType "k.o."]
[EventRounds "7"]
[EventCountry "GEO"]
[SourceTitle "CBM 181"]
[Source "ChessBase"]
[SourceDate "2017.11.10"]
[SourceVersion "1"]
[SourceVersionDate "2017.11.10"]
[SourceQuality "1"]
[TimeControl "40/5400+30:1800+30"]

1. e4 {[%emt 0:00:00]} d6 {[%emt 0:01:19]} 2. d4 {[%emt 0:00:00]} g6 {[%emt 0:00:29]} 3. Bc4 {[%emt 0:00:50] Magnus goes for something that the opponent would not have prepared.} Nf6 {[%emt 0:02:38]} 4. Qe2 {[%emt 0:00:12] Mikhail Tal played this before, Carlsen must know this game as he has adopted similar plan in his game.} Nc6 {[%emt 0:02:59]} 5. Nf3 {[%emt 0:03:23]} Bg7 {[%emt 0:04:46]} (5... Bg4 6. Bb5 (6. c3 $14) 6... Nd7 7. c3 e5 8. d5 Ncb8 9. h3 Bxf3 10. Qxf3 Be7 11. g3 Bg5 12. Nd2 h5 13. h4 Bh6 14. Nf1 Bxc1 15. Rxc1 a6 16. Ba4 Kf8 17. Ne3 Nf6 18. O-O Nbd7 19. b4 Kg7 20. Bc2 a5 21. a3 axb4 22. cxb4 Nb6 23. Ra1 Qd7 24. Rfc1 Ra7 25. Bd3 Rha8 26. Rc3 Na4 27. Rc2 Nb6 28. Rc3 Na4 29. Rc2 Nb6 {½-½ (29) Tal,M (2625)-Matulovic,M (2525) Skopje 1972}) 6. O-O {[%emt 0:20:34]} Bg4 {[%emt 0:07:18]} 7. c3 {[%emt 0:01:32] Because White has not developed his knight to c3, he gets to bolster his centre.} O-O {[%emt 0:09:31]} 8. h3 {[%emt 0:06:29]} Bxf3 {[%emt 0:06:29]} 9. Qxf3 {[%emt 0:00:35] I would say such positions are a nightmare against Magnus. Not only does he have the centre, but also the bishop pair.} e5 {[%emt 0:00:22]} 10. Rd1 {[%emt 0:05:32]} ({RR} 10. Be3 Nd7 11. Nd2 exd4 12. cxd4 Nxd4 13. Bxd4 Bxd4 14. Qb3 Nc5 15. Qc2 Qf6 16. Rab1 a5 17. Nf3 Be5 18. a3 Kg7 19. b4 axb4 20. axb4 Nd7 21. b5 Nc5 22. b6 c6 23. Rfd1 Ra3 24. Qe2 Na4 {Levitan,C (2385)-Ilinca,F (2446) chess.com INT 2025 0-1}) 10... Qe8 $146 {[%emt 0:08:42][%csl Ge4] Getting away from the rook's fire and threatening to capture the pawn on e4.} ({RR} 10... Nd7 11. Be3 Kh8 12. Qg3 Qe8 13. dxe5 Ndxe5 14. Be2 f5 15. exf5 gxf5 16. Na3 Ng6 17. Bh5 f4 18. Bxf4 Rxf4 19. Bxg6 Qf8 20. Bc2 Be5 21. Nb5 Qf7 22. Qe3 Rf8 23. Rd2 Qg7 24. Be4 Re8 25. Kh1 {Luukkonen,T (2290)-Sychev,K (2563) Moscow 2019 0-1 (52)}) ({RR} 10... Nd7 11. Qe3 Kh8 12. dxe5 Ncxe5 13. Bf1 f5 14. f4 Nf7 15. exf5 gxf5 16. Qf3 c6 17. Bd3 d5 18. Bxf5 Nd6 19. Bc2 Qb6+ 20. Qf2 Rae8 21. Qxb6 Nxb6 22. a4 Nbc4 23. Na3 Nxa3 24. Rxa3 Nc4 25. Ra1 {Bacrot,E (2677)-Adhiban,B (2682) Zagreb 2018 1-0 (60)}) ({RR} 10... Nd7 11. Be3 Kh8 12. Bb5 Qe7 13. Na3 f5 14. Bxc6 bxc6 15. exf5 e4 16. f6 Nxf6 17. Qe2 Nd5 18. Nc2 Rae8 19. Re1 Qf7 20. c4 Ne7 21. Rad1 Nf5 22. b3 h5 23. Bg5 Kh7 24. Qd2 a5 25. Qxa5 {Lenderman,A (2634)-Sadhwani,R (2545) Chess.com INT 2020 0-1 (62)}) 11. d5 {[%emt 0:11:41][%csl Gc4,Gd5][%cal Rc4d5] Shutting down your own bishop is not ideal. However, it closes the centre and gives White the much needed time to complete his development. Other choices like e3 or d2 did not work as in both cases one of the central pawns would fall.} Ne7 {[%emt 0:01:46]} 12. Qe2 $14 {[%emt 0:01:25][%csl Gc1,Gc4,Gd5,Ge4] The position is similar to the King's Indian Defence but the major difference is that Black is missing the light-squared bishop which is usually a very important piece.} Nh5 {[%emt 0:06:07]} 13. Bb5 {[%emt 0:07:30]} Qc8 {[%emt 0:05:59]} 14. Na3 {[%emt 0:01:29]} a6 {[%emt 0:02:55]} 15. Ba4 {[%emt 0:01:07]} f5 {[%emt 0:08:06] Good strong play by Balogun. He realises that he must do something active before White can finish his development.} 16. Bc2 {[%emt 0:03:53]} f4 $6 {[%emt 0:06:42] Closing the position wasn't the best idea.} (16... fxe4 $5 {looks more reasonable} 17. Bxe4 Nf6 18. Bf3 Qd7 19. Bg5 Rae8 $11) 17. Qg4 $1 {[%emt 0:04:09] A really good decision, Black's threat was to play f3 and shatter White's kingside. Now if Black exchanges queens then White will have a small edge as he has the bishop pair and if Black doesn't exchange then White will be in a good position to repel Black's attack.} Qxg4 {[%emt 0:04:06]} (17... Nf6 18. Qxc8 Rfxc8 $14 {gives White a small edge like in the game.}) (17... Qd8 $5 {keeping the queens on should have been preferred.}) 18. hxg4 {[%emt 0:01:14]} Nf6 {[%emt 0:00:10]} 19. g5 {[%emt 0:00:28]} (19. f3 $6 h5 $1 $11) 19... Nd7 {[%emt 0:04:27]} 20. Nc4 {[%emt 0:00:07]} b6 {[%emt 0:00:38]} 21. b4 {[%emt 0:00:29] As the kingside is closed White is in a good position to start his activity on the queenside.} h6 {[%emt 0:01:51]} 22. gxh6 {[%emt 0:01:42]} Bxh6 {[%emt 0:00:55]} 23. g4 $5 {[%emt 0:01:22]} (23. a4 $14 {was also slightly better for White.}) 23... Nf6 {[%emt 0:01:09]} 24. f3 {[%emt 0:00:04] The kingside is now under control. Over to the queenside.} Bg5 {[%emt 0:00:15]} 25. Kg2 {[%emt 0:01:38]} Kg7 {[%emt 0:01:27]} 26. a4 {[%emt 0:00:54]} Bh4 {[%emt 0:01:43][%cal Gh4g3,Gf8h8] Trying to create counterplay on the kingside with ...g3, ...h8 and ...h2.} 27. Bd2 {[%emt 0:01:32]} g5 {[%emt 0:00:53]} 28. Rh1 {[%emt 0:03:59]} Ng6 {[%emt 0:02:05]} 29. Kf1 {[%emt 0:00:44][%cal Gh4g3,Gg6h4] Getting away from the line of fire as ...g3 and ...h4 was threatened.} Rh8 {[%emt 0:01:37]} 30. Ke2 {[%emt 0:00:12]} Bg3 {[%emt 0:00:50]} 31. a5 $1 {[%emt 0:01:16]} b5 $6 {[%emt 0:00:57]} (31... bxa5 {looks odd but this was the best choice as after} 32. Nxa5 Rh4 $1 33. c4 (33. Nc6 Rah8 {and Black will have control over the h-file and good counterplay.} 34. Rxh4 gxh4 {[%cal Gh4h2]} 35. c4 h3 $11) 33... Rah8 34. Rxh4 Nxh4 {[%cal Gh4f3] and now White needs to be careful as ...xf3 is a nice tactical idea hanging in there.} 35. Rg1 $11 (35. c5 $2 {will fail to the nice} Nxf3 $1 36. Kxf3 Rh2 37. Rf1 Rxd2 $19) 35... Nxf3 {is still possible} 36. Kxf3 Rh2 37. Rg2 Rh3 38. Rg1 Rh2 39. Rg2 $11) 32. Na3 {[%emt 0:00:01] White's plan is very clear. Play c4, then b5-break and finally get a passed a-pawn.} Ne7 {[%emt 0:00:56]} 33. c4 {[%emt 0:02:22]} c6 {[%emt 0:00:53]} 34. dxc6 {[%emt 0:01:03]} Nxc6 {[%emt 0:00:09]} 35. Bc3 $1 {[%emt 0:00:05][%csl Rd4][%cal Rc6d4]} Rxh1 {[%emt 0:05:35]} 36. Rxh1 {[%emt 0:00:02]} bxc4 {[%emt 0:00:43]} 37. Nxc4 {[%emt 0:00:03] Now it's over.} Rb8 {[%emt 0:01:00]} (37... Rd8 38. Nb6 $18 {[%cal Gc2d3,Gd3a6]}) 38. Nxd6 {[%emt 0:00:29]} Kg6 {[%emt 0:00:30]} (38... Nxb4 39. Nf5+ Kg6 40. Rh6+ Kf7 41. Bb3+ $18) 39. Nf5 {[%emt 0:00:25] White is in control and Black's king is close to getting mated. Magnus scored his first win of the event.} 1-0

[Event "Tata Steel-A 80th"]
[Site "Wijk aan Zee"]
[Date "2018.01.13"]
[Round "1"]
[White "Carlsen, Magnus"]
[Black "Caruana, Fabiano"]
[Result "1/2-1/2"]
[ECO "C42"]
[WhiteElo "2834"]
[BlackElo "2811"]
[Annotator "Fernandez,Daniel Howard"]
[PlyCount "80"]
[EventDate "2018.01.13"]
[EventType "tourn"]
[EventRounds "13"]
[EventCountry "NED"]
[EventCategory "20"]
[SourceTitle "CBM 183"]
[Source "ChessBase"]
[SourceDate "2018.03.14"]
[SourceVersion "1"]
[SourceVersionDate "2018.03.14"]
[SourceQuality "1"]
[TimeControl "40/5400+30:1800+30"]

1. e4 {[%emt 0:00:00]} e5 {[%emt 0:00:00]} 2. Nf3 {[%emt 0:00:00]} Nf6 {[%emt 0:00:00]} 3. Nxe5 {[%emt 0:00:00]} d6 {[%emt 0:00:00]} 4. Nf3 {[%emt 0:00:00]} Nxe4 {[%emt 0:00:00]} 5. Qe2 {[%emt 0:00:00] A minor choice, generally renowned for leading to a drawish ending.'} Qe7 {[%emt 0:00:00]} 6. d3 {[%emt 0:00:00]} Nf6 {[%emt 0:00:00]} 7. Nc3 {[%emt 0:00:00]} Qxe2+ {[%emt 0:06:40]} 8. Bxe2 {[%emt 0:00:00]} g6 {[%emt 0:00:12]} ({On schematic grounds, I might have preferred} 8... c6 {[%csl Rc3] to close off all options of b5 and 'dominate' the c3-knight. The followup could then be ...d5 and ...g4, with the idea of trying to exchange the light-squared bishop for anything, and exchange the pair of dark-squared bishops.}) 9. Nd4 {[%emt 0:05:37]} a6 {[%emt 0:04:25]} 10. Bf4 {[%emt 0:05:06] Now this pressures the d6-pawn, so as to prevent ...c6 following a fianchetto. Black has little choice but to play ...c6 one way or another, and he will be left with doubled pawns.'} Bg7 {[%emt 0:00:33]} (10... Nbd7 {is the maximalist move, trying to prevent f3 altogether.}) 11. h3 {[%emt 0:00:43]} Bd7 {[%emt 0:06:15]} 12. Bf3 {[%emt 0:00:36]} Nc6 {[%emt 0:00:15]} 13. Nxc6 {[%emt 0:00:14]} Bxc6 {[%emt 0:00:05]} 14. Bxc6+ {[%emt 0:00:13]} bxc6 {[%emt 0:00:06]} 15. O-O-O {[%emt 0:00:50]} Kd7 {[%emt 0:06:33] Objectively, there is nothing whatsoever wrong with Black's position, and as long as one doesn't get carried away with premonitions of White kings appearing on a5 after the rooks come off (echoes of Rubinstein) then it is also easy enough to play.'} 16. Rhe1 {[%emt 0:01:14]} Rhe8 {[%emt 0:04:33]} 17. Ne4 $146 {[%emt 0:00:42]} (17. Bd2 {[%cal Ge1e8,Gd1e1] may have been wisest, focusing on the task of exchanging all the rooks as quickly as possible and then placing pawns on light squares.}) ({RR} 17. Bd2) 17... Nd5 {[%emt 0:07:57]} (17... Nxe4 18. dxe4 Re6 19. f3 Rae8 20. Bd2 {[%cal Gc2c4,Gc1c2] is also fine but now White's moves are definitely easier to find, starting with c4, Kc2, b3.}) 18. Bd2 {[%emt 0:00:11]} f5 {[%emt 0:02:42]} 19. Ng5 {[%emt 0:00:11]} h6 {[%emt 0:00:09]} 20. Nf3 {[%emt 0:00:09]} g5 {[%emt 0:04:07]} 21. c3 {[%emt 0:02:59]} c5 {[%emt 0:07:56]} 22. Kc2 {[%emt 0:02:16]} Bf6 {[%emt 0:00:30]} ({The computer wants} 22... a5 {but it can never be good to allow this pawn to be fixed.}) 23. Rxe8 {[%emt 0:01:08]} Rxe8 {[%emt 0:01:29]} 24. Re1 {[%emt 0:00:11]} Rf8 {[%emt 0:05:21]} 25. Rh1 {[%emt 0:01:51]} Re8 {[%emt 0:06:55]} 26. g3 {[%emt 0:01:59]} g4 {[%emt 0:09:09]} 27. Ng1 {[%emt 0:00:38]} Bg5 {[%emt 0:00:14]} 28. Kd1 {[%emt 0:06:20]} a5 {[%emt 0:11:46]} 29. Ne2 {[%emt 0:02:30] One of several acceptable moves.} (29. a4 Rb8 $1 $15 {was the point and White is being stretched a bit thin.}) 29... a4 {[%emt 0:00:13]} (29... Rb8 $5 30. b3 a4 31. Bxg5 hxg5 {is a little bit testing, perhaps}) 30. Bxg5 {[%emt 0:05:53]} hxg5 {[%emt 0:00:15]} 31. hxg4 {[%emt 0:00:09]} fxg4 {[%emt 0:00:04]} 32. Rh5 {[%emt 0:00:22]} Re5 {[%emt 0:01:40]} 33. Rh7+ {[%emt 0:00:31]} Ke6 {[%emt 0:07:59]} 34. a3 {[%emt 0:13:54]} (34. d4 {screams out to be played, but there is nothing much going on here either:} Rf5 35. c4 Nb6 36. b3 axb3 37. axb3 Rf3 $11 {Nevertheless, this was marginally safer for White than the game.}) 34... Rf5 {[%emt 0:00:09]} 35. c4 {[%emt 0:02:06]} Nf6 {[%emt 0:05:21]} 36. Rh2 {[%emt 0:00:45] It looks slightly dangerous to a human to allow ...xf2, because ...d7-e5 with pressure will follow soon.'} Rf3 {[%emt 0:00:52]} 37. Kc2 {[%emt 0:00:51]} Nd7 {[%emt 0:00:45]} 38. d4 {[%emt 0:05:54] Else White is in very obvious difficulties.} Nb6 {[%emt 0:00:17]} (38... Rf5 {is a sensible engine suggestion; this keeps a bit of pressure by not clarifying the situation of the d4-pawn.} 39. Kd3 (39. Rh7 Nb6 40. dxc5 Rxc5 $36) 39... Rf7 {An engine move; what was your first clue?} 40. Rh6+ $6 Ke7 41. Rh2 cxd4 42. Nxd4 Ne5+ 43. Kc3 c5 $15) 39. dxc5 {[%emt 0:00:42]} dxc5 {[%emt 0:00:07]} 40. Nc3 {[%emt 0:00:00]} Ke5 (40... Ke5 {[%emt 0:00:00]} {Presumably the expected continuation was:} 41. Nd1 {[%emt 0:00:00]} Nxc4 42. Rh5 Kd4 43. Rxg5 Ne5 44. Rg7 {when White is completely out of the woods.}) 1/2-1/2

[Event "Tata Steel-A 80th"]
[Site "Wijk aan Zee"]
[Date "2018.01.16"]
[Round "4"]
[White "Giri, Anish"]
[Black "Carlsen, Magnus"]
[Result "1/2-1/2"]
[ECO "C18"]
[WhiteElo "2752"]
[BlackElo "2834"]
[PlyCount "61"]
[EventDate "2018.01.13"]
[EventType "tourn"]
[EventRounds "13"]
[EventCountry "NED"]
[EventCategory "20"]
[SourceTitle "CBM 183"]
[Source "ChessBase"]
[SourceDate "2018.03.14"]
[SourceVersion "1"]
[SourceVersionDate "2018.03.14"]
[SourceQuality "1"]
[TimeControl "40/6000+30:20/3000+30:900+30"]

1. e4 {[%emt 0:00:00]} e6 {[%emt 0:00:23]} 2. d4 {[%emt 0:00:00]} d5 {[%emt 0:00:07]} 3. Nc3 {[%emt 0:00:00]} Bb4 {[%emt 0:00:08]} 4. e5 {[%emt 0:00:00]} Ne7 {[%emt 0:00:11]} 5. a3 {[%emt 0:00:27]} Bxc3+ {[%emt 0:00:10]} 6. bxc3 {[%emt 0:00:03]} c5 {[%emt 0:00:15]} 7. Qg4 {[%emt 0:00:52]} cxd4 {[%emt 0:00:09]} 8. Qxg7 {[%emt 0:03:29]} Rg8 {[%emt 0:00:09]} 9. Qxh7 {[%emt 0:00:03]} Qc7 {[%emt 0:00:17]} 10. Ne2 {[%emt 0:00:15]} Nbc6 {[%emt 0:00:23]} 11. f4 {[%emt 0:00:19]} dxc3 {[%emt 0:00:08]} 12. Nxc3 {[%emt 0:05:59]} Nd4 {[%emt 0:00:25]} 13. Bb2 {[%emt 0:09:42]} Bd7 {[%emt 0:02:15]} 14. O-O-O {[%emt 0:00:58]} Qb6 {[%emt 0:00:45]} ({RR} 14... Ndf5 15. Qh3 Qc5 16. Rd2 O-O-O 17. g4 Ne3 18. Nd1 Nxf1 19. Rxf1 Bb5 20. Re1 Nc6 21. f5 d4 22. fxe6 fxe6 23. Nf2 Nxe5 24. Ne4 Qc6 25. Bxd4 Nd3+ 26. Rxd3 Bxd3 27. Qxd3 e5 28. Nf6 Qxf6 29. Qc3+ {Karjakin,S (2786)-Nepomniachtchi,I (2703) Moscow 2013 ½-½ (73)}) 15. Qd3 {[%emt 0:13:31]} Ndf5 {[%emt 0:00:19]} 16. Rd2 $146 {[%emt 0:01:11]} ({RR} 16. Nb5 Rc8 17. g3 a6 18. Nd4 Ba4 19. Rd2 Rc4 20. Bg2 Nxd4 21. Bxd4 Qb5 22. Bf1 Qc6 23. Qh7 Rg7 24. Qh8+ Rg8 25. Qh7 Rg7 26. Qh8+ Rg8 27. Qh7 {½-½ (27) Horvath,C (2515)-Balog,I (2539) Budapest 2013}) ({RR} 16. Nb5 O-O-O 17. g3 a6 18. Nd4 Kb8 19. Qb3 Qa7 20. Bh3 Rc8 21. Nxf5 exf5 22. Bd4 Qa8 23. Qb4 Rce8 24. Qd6+ Kc8 25. Bb6 Qb8 26. Qc5+ Bc6 27. Bg2 {1-0 (27) Nijboer,F (2525)-Wirschell,T (2325) Antwerp 1996}) 16... Rc8 {[%emt 0:06:56]} 17. g3 {[%emt 0:03:47]} Ne3 {[%emt 0:10:51]} 18. Ne4 {[%emt 0:14:49]} Rxc2+ {[%emt 0:07:35]} 19. Rxc2 {[%emt 0:00:54]} dxe4 {[%emt 0:00:03]} 20. Qxe4 {[%emt 0:05:59]} Nxc2 {[%emt 0:01:38]} 21. Qxc2 {[%emt 0:00:07]} Bc6 {[%emt 0:01:54]} 22. Bg2 {[%emt 0:00:20]} Bxg2 {[%emt 0:00:29]} 23. Qxg2 {[%emt 0:00:05]} Nd5 {[%emt 0:00:07]} 24. Kb1 {[%emt 0:09:31]} Nc3+ {[%emt 0:00:31]} 25. Ka1 {[%emt 0:00:24]} Qb3 {[%emt 0:00:28]} 26. Bxc3 {[%emt 0:00:05]} Qxa3+ {[%emt 0:00:09]} 27. Kb1 {[%emt 0:00:18]} Qxc3 {[%emt 0:00:04]} 28. Rc1 {[%emt 0:10:34]} Qb4+ {[%emt 0:00:15]} 29. Qb2 {[%emt 0:00:54]} Qe4+ {[%emt 0:00:09]} 30. Qc2 {[%emt 0:00:05]} Qb4+ {[%emt 0:00:11]} 31. Qb2 {[%emt 0:00:05]} 1/2-1/2

[Event "Tata Steel-A 80th"]
[Site "Wijk aan Zee"]
[Date "2018.01.17"]
[Round "5"]
[White "Carlsen, Magnus"]
[Black "Kramnik, Vladimir"]
[Result "1/2-1/2"]
[ECO "C54"]
[WhiteElo "2834"]
[BlackElo "2787"]
[Annotator "ChessBase II"]
[PlyCount "126"]
[EventDate "2018.01.13"]
[EventType "tourn"]
[EventRounds "13"]
[EventCountry "NED"]
[EventCategory "20"]
[SourceTitle "CBM 183"]
[Source "ChessBase"]
[SourceDate "2018.03.14"]
[SourceVersion "1"]
[SourceVersionDate "2018.03.14"]
[SourceQuality "1"]
[TimeControl "40/6000+30:20/3000+30:900+30"]

{Especially dramatic was the match between Magnus Carlsen and Vladimir Kramnik. In an Italian game Kramnik reached easy equality with Black} 1. e4 {[%emt 0:00:00]} e5 {[%emt 0:00:09]} 2. Nf3 {[%emt 0:00:00]} Nc6 {[%emt 0:00:05]} 3. Bc4 {[%emt 0:00:00]} Bc5 {[%emt 0:00:16]} 4. O-O {[%emt 0:00:01]} Nf6 {[%emt 0:00:22]} 5. d3 {[%emt 0:00:07]} d6 {[%emt 0:01:10]} 6. c3 {[%emt 0:00:19]} a6 {[%emt 0:00:11]} 7. a4 {[%emt 0:00:17]} O-O {[%emt 0:01:12]} 8. h3 {[%emt 0:00:18]} h6 {[%emt 0:02:17]} 9. Re1 {[%emt 0:02:41]} Re8 {[%emt 0:00:58]} 10. Nbd2 {[%emt 0:03:42]} Be6 {[%emt 0:01:14]} 11. Bxe6 {[%emt 0:01:26]} Rxe6 {[%emt 0:00:25]} 12. b4 {[%emt 0:00:06]} Ba7 {[%emt 0:00:04]} 13. Qc2 {[%emt 0:06:43]} Qd7 {[%emt 0:00:13]} 14. Nf1 {[%emt 0:06:09]} ({RR} 14. Rb1 Rd8 15. b5 Ne7 16. Nc4 Ng6 17. Be3 Bxe3 18. Nxe3 d5 19. c4 d4 20. Nd5 axb5 21. axb5 c6 22. bxc6 bxc6 23. Nb6 Qe7 24. g3 Nf8 25. c5 Ne8 26. Ra1 Qf6 27. Kg2 Nc7 28. Ra5 Ree8 {Bok,B (2593)-Vrolijk,L (2521) Venlo NED 2025 ½-½ (42)}) 14... d5 {[%emt 0:01:00]} 15. Ng3 {[%emt 0:14:26]} Rd8 {[%emt 0:04:39]} 16. exd5 $146 {[%emt 0:16:32]} ({RR} 16. Rb1 Ne7 17. c4 dxc4 18. dxc4 Nc6 19. c5 Qd3 20. Qxd3 Rxd3 21. Be3 a5 22. bxa5 Nxa5 23. Rb5 b6 24. Nxe5 Ra3 25. Rd1 Rxa4 26. Rd8+ Kh7 27. Nxf7 Nxe4 28. Nxe4 Raxe4 29. Rc8 Re7 30. Nd8 c6 {Silich,Y (2221)-Bialiauski,A (1996) Minsk 2022 1-0 (74)}) ({RR} 16. Rb1 Ne7 17. c4 dxc4 18. dxc4 Nc6 19. c5 Qd3 20. Qxd3 Rxd3 21. Be3 a5 22. bxa5 Nxa5 23. Rb5 b6 24. Nxe5 Ra3 25. Rd1 Rxa4 26. Rd8+ Kh7 27. Nxf7 Nxe4 28. Nxe4 Raxe4 29. Rc8 Re7 30. Nd8 c6 {Silich,Y (2221)-Bialiauski,A (1996) Minsk 2022 1-0 (74)}) 16... Qxd5 {[%emt 0:14:05]} 17. Be3 {[%emt 0:00:09]} Qxd3 {[%emt 0:19:40]} 18. Qxd3 {[%emt 0:00:07]} Rxd3 {[%emt 0:00:05]} 19. Bxa7 {[%emt 0:09:11]} Nxa7 {[%emt 0:01:24]} 20. Nxe5 {[%emt 0:00:04]} Rd5 {[%emt 0:02:26]} 21. Ng4 {[%emt 0:00:20]} Nxg4 {[%emt 0:06:14]} 22. Rxe6 {[%emt 0:00:04]} fxe6 {[%emt 0:00:09]} 23. hxg4 {[%emt 0:00:04]} a5 {[%emt 0:01:58]} 24. f3 {[%emt 0:02:26]} Nc6 {[%emt 0:07:20]} 25. Rb1 {[%emt 0:07:16]} b6 {[%emt 0:08:27]} 26. Ne4 {[%emt 0:00:46]} axb4 {[%emt 0:04:39]} 27. cxb4 {[%emt 0:00:12]} Rd4 {[%emt 0:00:03]} 28. b5 $6 {[%emt 0:01:15] After one "impulsive" move (28.b5) — as Carlsen said after the game — the Norwegian even came under pressure and had to save himself in a rook ending, where black had two pawns extra — although doubled on the g-line. With only one g-pawn it would be a theoretical draw, but the second g-pawn made the matter "tricky" to quote Carlsen. But Carlsen defended himself precisely and saved the draw} Ne5 {[%emt 0:01:27]} 29. Rc1 {[%emt 0:11:02]} Nxg4 {[%emt 0:07:22]} 30. fxg4 {[%emt 0:02:50]} Rxe4 {[%emt 0:00:35]} 31. Rxc7 {[%emt 0:00:09]} Rxa4 {[%emt 0:02:44]} 32. Rc6 {[%emt 0:02:10]} Kf7 {[%emt 0:02:36]} 33. g5 {[%emt 0:01:35]} hxg5 {[%emt 0:00:22]} 34. Rxb6 {[%emt 0:00:02]} Rb4 {[%emt 0:01:28]} 35. Rb8 {[%emt 0:04:45]} Kf6 {[%emt 0:04:54]} 36. b6 {[%emt 0:00:21]} Ke5 {[%emt 0:02:25]} 37. Kh2 {[%emt 0:09:23]} Rb3 {[%emt 0:00:59]} 38. g4 {[%emt 0:08:53]} Kf4 {[%emt 0:07:48]} 39. b7 {[%emt 0:00:04]} Kxg4 {[%emt 0:02:10]} 40. Re8 {[%emt 0:00:00]} Rxb7 {[%emt 0:01:14]} 41. Rxe6 {[%emt 0:01:39]} Rb2+ {[%emt 0:08:12]} 42. Kg1 {[%emt 0:00:03]} Kf3 {[%emt 0:02:35]} 43. Ra6 {[%emt 0:00:44]} Rg2+ {[%emt 0:04:59]} 44. Kh1 {[%emt 0:00:52]} Re2 {[%emt 0:02:48]} 45. Kg1 {[%emt 0:08:27]} g4 {[%emt 0:02:28]} 46. Ra1 {[%emt 0:01:24]} Re8 {[%emt 0:08:00]} 47. Rb1 {[%emt 0:03:54]} g3 {[%emt 0:09:01]} 48. Rb3+ {[%emt 0:00:40]} Re3 {[%emt 0:03:29]} 49. Rb1 {[%emt 0:00:02]} Re8 {[%emt 0:04:24]} 50. Rb3+ {[%emt 0:00:05]} Kg4 {[%emt 0:00:06]} 51. Rb5 {[%emt 0:00:11]} Re1+ {[%emt 0:05:22]} 52. Kg2 {[%emt 0:00:01]} Re2+ {[%emt 0:00:18]} 53. Kg1 {[%emt 0:00:02]} g5 {[%emt 0:05:15]} 54. Rb8 {[%emt 0:00:12]} Re1+ {[%emt 0:00:24]} 55. Kg2 {[%emt 0:00:03]} Re2+ {[%emt 0:00:04]} 56. Kg1 {[%emt 0:00:10]} Ra2 {[%emt 0:00:42]} 57. Rc8 {[%emt 0:00:10]} Ra1+ {[%emt 0:01:28]} 58. Kg2 {[%emt 0:00:02]} Ra2+ {[%emt 0:00:04]} 59. Kg1 {[%emt 0:00:07]} g2 {[%emt 0:02:18]} 60. Rc4+ {[%emt 0:00:00]} Kh3 {[%emt 0:00:53]} 61. Rc3+ {[%emt 0:00:18]} Kh4 {[%emt 0:00:09]} 62. Rc4+ {[%emt 0:00:08]} g4 {[%emt 0:00:35]} 63. Rc3 {[%emt 0:00:04]} Kh5 1/2-1/2